bitfinex-derivatives/quotes_SOLF0:USTF0_20250331
["timestamp","ask_amount","ask_price","bid_price","bid_amount"]
[1743406657139,0.05961102,125.6,125.59,7.9638]
[1743406658339,7.9603,125.65,125.62,7.9615]
[1743406658840,7.9607,125.64,125.61,7.9624]
[1743406659039,1.9594,125.67,125.58,28.69532271]
[1743406659440,7.962,125.62,125.61,0.05961102]
[1743406662241,7.9615,125.63,125.55,391.5487]
[1743406662444,7.9615,125.63,125.6,7.9628]
[1743406663139,7.9619,125.62,125.59,7.9635]
[1743406663438,31.56,125.64,125.55,414.53433219]
[1743406663439,0.059823,125.63,125.55,414.53433219]
[1743406663743,39.5209,125.64,125.55,414.53433219]
[1743406664041,0.05704975,125.6,125.55,414.53433219]
[1743406664242,0.05704975,125.6,125.59,7.9638]
[1743406666346,0.05704975,125.6,125.58,7.9641]
[1743406666549,0.05704975,125.6,125.55,391.5487]
[1743406667046,0.05704975,125.6,125.55,360.0287]
[1743406667242,0.05704975,125.6,125.55,391.5287]
[1743406667446,0.05704975,125.6,125.58,7.964]
[1743406668046,8.02024975,125.6,125.55,391.5287]
[1743406668444,0.05704975,125.6,125.55,391.5287]
[1743406668644,0.05704975,125.6,125.56,7.9654]
[1743406668952,7.9642,125.59,125.56,7.9654]
[1743406669343,7.9657,125.56,125.55,358.0]
[1743406669543,31.48,125.58,125.5,2.1598]
[1743406669744,7.9671,125.54,125.5,2.1598]
[1743406670248,0.06034036,125.55,125.5,2.1598]
[1743406670448,31.54034036,125.55,125.49,358.0]
[1743406670650,31.54034036,125.55,125.46,317.98]
[1743406670948,31.48,125.55,125.46,317.98]
[1743406671147,0.06013406,125.52,125.47,22.98563219]
[1743406671452,7.9653,125.57,125.54,7.9668]
[1743406671649,2.1559,125.6,125.51,31.58]
[1743406671953,2.1455,125.62,125.53,22.98563219]
[1743406672148,89.39564103,125.64,125.54,31.66]
[1743406672453,21.1887364,125.57,125.54,389.66]
[1743406672647,97.3800979,125.58,125.57,22.98563219]
[1743406672847,96.8293979,125.58,125.57,63.97073219]
[1743406673647,48.1549979,125.58,125.57,429.93073219]
[1743406673853,190.32715527,125.59,125.58,7.9644]
[1743406674755,0.06115277,125.59,125.58,7.9644]
[1743406677449,5.277e-05,125.59,125.58,365.9644]
[1743406678653,5.277e-05,125.59,125.58,373.9244]
[1743406678854,4.0686,125.68,125.64,7.9602]
[1743406679054,12.027,125.68,125.64,7.9602]
[1743406679551,12.027,125.68,125.62,32.96]
[1743406679757,4.0686,125.68,125.62,32.96]
[1743406679959,0.05992875,125.66,125.64,0.05656865]
[1743406681460,0.05992875,125.66,125.65,7.96]
[1743406681655,0.05992875,125.66,125.64,0.05656865]
[1743406682056,0.05992875,125.66,125.64,8.01676865]
[1743406682756,0.05992875,125.66,125.65,40.84]
[1743406682957,2.875e-05,125.66,125.65,40.84]
[1743406683163,2.875e-05,125.66,125.65,429.78563219]
[1743406683365,1.9829,125.75,125.65,545.82563219]
[1743406683658,22.98563219,125.8,125.69,22.98563219]
[1743406683856,4.1136,125.81,125.71,22.98563219]
[1743406684062,4.1136,125.81,125.71,380.98563219]
[1743406684260,32.96,125.83,125.73,22.98563219]
[1743406684461,0.06096066,125.77,125.75,0.05404787]
[1743406684661,32.96,125.83,125.75,358.0]
[1743406684861,7.9504,125.81,125.76,7.953]
[1743406685055,0.0588402,125.77,125.76,7.953]
[1743406685254,7.9489,125.83,125.77,7.9522]
[1743406685462,60.01313219,125.86,125.78,124.0]
[1743406685655,0.05692998,125.81,125.78,124.0]
[1743406685860,0.05692998,125.81,125.79,32.9343488]
[1743406687165,0.05692998,125.81,125.79,0.0543488]
[1743406687365,7.9505,125.8,125.79,0.0543488]
[1743406687659,0.05692998,125.81,125.79,0.0543488]
[1743406688563,7.9505,125.8,125.79,0.0543488]
[1743406688961,23.04256217,125.81,125.76,358.0]
[1743406689159,7.9519,125.78,125.76,358.0]
[1743406689363,7.9519,125.78,125.74,120.68103766]
[1743406689562,7.9525,125.77,125.74,120.68103766]
[1743406689763,22.98563219,125.81,125.74,120.68103766]
[1743406689958,22.98563219,125.81,125.76,0.05603188]
[1743406690165,0.05565395,125.79,125.76,0.05603188]
[1743406690865,7.9524,125.77,125.76,0.05603188]
[1743406691263,23.04128614,125.79,125.71,358.0]
[1743406691464,22.98563219,125.77,125.71,358.0]
[1743406691669,22.98563219,125.77,125.7,33.22]
[1743406691966,22.98563219,125.77,125.7,41.1762]
[1743406692357,7.9541,125.75,125.72,0.05251331]
[1743406692556,8.00796816,125.75,125.72,0.05251331]
[1743406692858,7.9544,125.74,125.72,0.05251331]
[1743406693057,0.05386816,125.75,125.72,0.05251331]
[1743406693259,0.05386816,125.75,125.73,33.14]
[1743406694969,8.00756816,125.75,125.73,33.14]
[1743406695462,0.05386816,125.75,125.73,33.14]
[1743406695766,0.05386816,125.75,125.72,0.05251331]
[1743406695966,0.05386816,125.75,125.72,33.13251331]
[1743406696166,7.9548,125.74,125.72,33.13251331]
[1743406696464,0.05386816,125.75,125.72,33.13251331]
[1743406696768,0.05386816,125.75,125.72,41.08781331]
[1743406697164,0.05386816,125.75,125.72,33.13251331]
[1743406697664,0.00656816,125.75,125.73,22.98563219]
[1743406697864,2.0543,125.84,125.73,380.98563219]
[1743406698167,2.0543,125.84,125.8,7.9505]
[1743406698366,2.0543,125.84,125.81,33.02]
[1743406698970,2.11068891,125.84,125.81,33.07317332]
[1743406699169,0.05638891,125.84,125.81,41.02267332]
[1743406699564,0.05638891,125.84,125.81,33.07317332]
[1743406700369,8.00468891,125.84,125.81,33.07317332]
[1743406700864,0.05638891,125.84,125.81,41.02287332]
[1743406701070,0.05638891,125.84,125.81,33.07317332]
[1743406701271,0.05638891,125.84,125.81,391.07317332]
[1743406701472,0.00035703,125.84,125.83,7.9486]
[1743406701663,27.03493219,125.93,125.83,358.0]
[1743406701871,4.0493,125.93,125.84,55.86563219]
[1743406702172,22.98563219,125.99,125.88,22.98563219]
[1743406702368,2.0604,125.98,125.9,22.98563219]
[1743406702763,0.05196476,125.95,125.93,0.05209949]
[1743406702968,22.98563219,126.03,125.96,7.9403]
[1743406703173,4.1285,126.05,125.97,32.9]
[1743406703469,7.9354,126.04,125.99,7.9383]
[1743406703771,22.98563219,126.09,126.0,156.86]
[1743406703971,2.0604,126.08,126.0,156.86]
[1743406704172,0.05420106,126.06,126.03,0.05641159]
[1743406704365,0.05420106,126.06,126.03,32.93641159]
[1743406704770,0.05420106,126.06,126.03,0.05641159]
[1743406705170,7.9354,126.04,126.03,0.05641159]
[1743406707775,0.05420106,126.06,126.03,0.05641159]
[1743406708573,7.9354,126.04,126.03,0.05641159]
[1743406709177,72.02330986,126.08,126.03,0.05641159]
[1743406709984,7.9354,126.04,126.03,0.05641159]
[1743406711185,7.98825398,126.05,126.03,0.05641159]
[1743406711487,0.05335398,126.05,126.03,0.05641159]
[1743406711788,7.9354,126.04,126.03,0.05641159]
[1743406712988,7.9373,126.01,125.99,32.6]
[1743406713182,32.58,126.05,125.96,644.16]
[1743406713384,7.9393,125.98,125.97,32.58]
[1743406713579,37.12290986,126.02,125.94,32.58]
[1743406713797,69.68290986,126.02,125.94,32.58]
[1743406714090,0.05532171,125.99,125.94,32.58]
[1743406714291,0.05532171,125.99,125.97,0.05212721]
[1743406715489,0.05532171,125.99,125.97,32.57212721]
[1743406715881,7.99412171,125.99,125.97,32.57212721]
[1743406716085,0.05532171,125.99,125.97,32.57212721]
[1743406717791,7.99402171,125.99,125.97,32.57212721]
[1743406718187,7.93540556,125.99,125.97,32.57212721]
[1743406719389,7.98608683,125.99,125.97,32.57212721]
[1743406719587,2.0908,126.03,125.97,32.57212721]
[1743406720492,37.12290986,126.08,126.0,7.9376]
[1743406720692,37.12290986,126.08,126.01,32.42]
[1743406720898,0.05480077,126.05,126.03,0.05082383]
[1743406721299,7.99010077,126.05,126.03,0.05082383]
[1743406724505,7.9354,126.04,126.03,0.05082383]
[1743406725104,0.05480077,126.05,126.03,0.05082383]
[1743406727106,0.05480077,126.05,126.03,7.98652383]
[1743406727303,0.05480077,126.05,126.03,0.05082383]
[1743406727606,0.05480077,126.05,126.04,7.9354]
[1743406729703,0.05480077,126.05,126.03,7.98672383]
[1743406730209,0.05480077,126.05,126.03,0.05082383]
[1743406730502,0.05480077,126.05,126.04,7.9354]
[1743406731707,2.0794,126.09,126.05,7.9347]
[1743406731900,2.0794,126.09,126.05,39.9547]
[1743406732204,7.9332,126.08,126.05,39.9547]
[1743406732907,7.98430687,126.08,126.05,40.01132176]
[1743406733506,2.0794,126.09,126.05,40.01132176]
[1743406733804,2.0794,126.09,126.05,32.07662176]
[1743406734003,7.9341,126.06,126.05,32.07662176]
[1743406734198,7.9341,126.06,126.05,0.05662176]
[1743406736510,7.9354,126.04,126.03,119.34103766]
[1743406737111,7.9354,126.04,126.03,131.10155649]
[1743406737809,0.06040926,126.07,126.03,131.10155649]
[1743406738412,0.06040926,126.07,126.04,7.9349]
[1743406738602,0.06040926,126.07,126.03,131.10155649]
[1743406738905,0.06040926,126.07,126.05,7.9343]
[1743406739106,0.06040926,126.07,126.03,131.10155649]
[1743406739314,0.06040926,126.07,126.05,0.05242644]
[1743406739613,7.99430926,126.07,126.05,0.05242644]
[1743406740316,0.06040926,126.07,126.05,7.98682644]
[1743406740618,0.06040926,126.07,126.06,88.05041058]
[1743406741107,0.06040926,126.07,126.06,95.98451058]
[1743406741414,0.06040926,126.07,126.06,88.05041058]
[1743406741914,7.99390926,126.07,126.06,88.05041058]
[1743406742409,7.99390926,126.07,126.06,153.2233824]
[1743406743115,7.99390926,126.07,126.06,149.9765824]
[1743406743308,7.99390926,126.07,126.06,121.7794824]
[1743406743515,8.00040926,126.07,126.03,275.31765738]
[1743406743714,22.83234522,126.04,126.03,247.07865796]
[1743406743916,54.65234522,126.04,126.03,243.87365796]
[1743406744121,62.58774522,126.04,126.03,243.87365796]
[1743406745216,7.936,126.03,126.02,0.0544797]
[1743406747707,195.67885265,126.03,126.02,0.0544797]
[1743406748618,7.9392,125.98,125.95,362.2449]
[1743406748813,31.64,126.01,125.95,2.1583]
[1743406749013,22.83234522,126.0,125.94,326.04337601]
[1743406749218,7.9403,125.97,125.94,326.04337601]
[1743406749419,752.36557344,125.96,125.94,7.9416]
[1743406749619,752.36557344,125.96,125.92,285.52]
[1743406749810,752.42176493,125.96,125.95,7.941]
[1743406750015,742.67356493,125.96,125.95,7.941]
[1743406750218,732.92536493,125.96,125.95,7.941]
[1743406750714,374.02905698,125.96,125.95,7.941]
[1743406750915,4.0875,126.03,125.97,7.9393]
[1743406751118,4.0875,126.03,125.96,31.58]
[1743406751318,4.0875,126.03,125.97,7.9394]
[1743406751616,4.0875,126.03,125.96,31.58]
[1743406751818,7.9376,126.01,125.96,31.58]
[1743406752014,0.05964094,126.01,125.98,0.05142652]
[1743406753321,31.55964094,126.01,125.98,0.05142652]
[1743406753518,7.9385,125.99,125.98,0.05142652]
[1743406754616,31.55964094,126.01,125.93,358.0]
[1743406754821,22.83234522,125.98,125.88,22.83234522]
[1743406755021,22.83234522,125.96,125.89,31.52]
[1743406755219,22.83234522,125.96,125.89,7.9446]
[1743406755415,22.83234522,125.96,125.88,31.52]
[1743406755721,0.05582664,125.93,125.91,0.05954949]
[1743406756519,0.05582664,125.93,125.92,7.9429]
[1743406757625,0.05582664,125.93,125.91,31.57954949]
[1743406757826,0.05582664,125.93,125.91,0.05954949]
[1743406758126,0.05582664,125.93,125.91,8.00244949]
[1743406758718,0.05582664,125.93,125.91,0.05954949]
[1743406759327,0.05582664,125.93,125.91,8.00284949]
[1743406759522,0.05582664,125.93,125.91,0.05954949]
[1743406759826,7.99822664,125.93,125.91,8.00284949]
[1743406760227,7.99822664,125.93,125.91,0.05954949]
[1743406760430,7.9429,125.92,125.91,0.05954949]
[1743406761229,7.99842664,125.93,125.91,0.05954949]
[1743406761830,7.9429,125.92,125.91,0.05954949]
[1743406763829,7.9457,125.88,125.85,7.9468]
[1743406764032,45.86310215,125.89,125.81,16.42920215]
[1743406764233,45.86310215,125.89,125.81,14.30310215]
[1743406764430,7.9477,125.85,125.82,7.949]
[1743406764634,45.86310215,125.89,125.8,675.32]
[1743406764832,45.86310215,125.89,125.8,643.76]
[1743406765031,7.9484,125.84,125.83,0.05349512]
[1743406765937,7.9502,125.81,125.77,2.1261]
[1743406766128,7.9502,125.81,125.75,26.40766979]
[1743406766129,7.9502,125.81,125.78,7.9515]
[1743406766429,7.9509,125.8,125.75,25.02520877]
[1743406766626,31.54,125.83,125.76,7.9528]
[1743406766828,31.54,125.83,125.75,2.1074]
[1743406767026,7.9517,125.79,125.75,2.1074]
[1743406767233,0.05486296,125.8,125.78,0.06110248]
[1743406767634,7.9511,125.79,125.78,0.06110248]
[1743406771438,7.9524,125.77,125.7,414.43090877]
[1743406771637,31.48,125.77,125.7,391.5131]
[1743406771839,7.9543,125.74,125.7,389.46]
[1743406772134,31.48,125.77,125.68,285.92]
[1743406772334,7.9547,125.74,125.69,7.9568]
[1743406772537,0.05108107,125.74,125.71,0.05801395]
[1743406772737,31.51108107,125.74,125.71,0.05801395]
[1743406773041,7.955,125.73,125.71,0.05801395]
[1743406773240,31.51108107,125.74,125.71,0.05801395]
[1743406773742,0.05108107,125.74,125.71,0.05801395]
[1743406775544,0.05108107,125.74,125.73,7.9549]
[1743406775743,31.48,125.79,125.73,31.46]
[1743406776447,10.0887,125.81,125.73,31.46]
[1743406776647,2.1385,125.81,125.73,31.46]
[1743406776850,0.05258022,125.78,125.76,0.0591549]
[1743406777448,8.00468022,125.78,125.76,0.0591549]
[1743406777848,0.05258022,125.78,125.76,0.0591549]
[1743406778651,8.00468022,125.78,125.76,0.0591549]
[1743406779850,7.9524,125.77,125.76,0.0591549]
[1743406780347,0.05258022,125.78,125.76,0.0591549]
[1743406781149,8.00448022,125.78,125.76,0.0591549]
[1743406782249,7.9524,125.77,125.76,0.0591549]
[1743406790654,8.00468022,125.78,125.76,0.0591549]
[1743406790855,0.05258022,125.78,125.76,0.0591549]
[1743406791860,7.9524,125.77,125.76,0.0591549]
[1743406792463,7.9524,125.77,125.76,0.00537746]
[1743406800862,14.39107515,125.78,125.76,0.00537746]
[1743406801165,0.05258022,125.78,125.76,0.00537746]
[1743406801461,7.9524,125.77,125.76,0.00537746]
[1743406802663,8.00468022,125.78,125.76,0.00537746]
[1743406802866,0.05258022,125.78,125.76,0.00537746]
[1743406803262,7.9524,125.77,125.76,0.00537746]
[1743406803563,14.33849493,125.84,125.76,0.00537746]
[1743406803856,7.9502,125.81,125.75,45.21849493]
[1743406804157,14.33849493,125.84,125.75,30.88]
[1743406804365,7.949,125.83,125.77,14.33849493]
[1743406804565,7.949,125.83,125.81,7.9498]
[1743406805162,8.00686006,125.83,125.81,7.9498]
[1743406805366,0.05786006,125.83,125.82,7.9492]
[1743406805767,0.05786006,125.83,125.81,30.84]
[1743406805961,0.05786006,125.83,125.81,38.7895]
[1743406806161,0.05786006,125.83,125.81,30.84]
[1743406806459,0.05786006,125.83,125.79,0.05320631]
[1743406807361,0.05786006,125.83,125.79,14.39170124]
[1743406807760,0.05786006,125.83,125.82,7.9492]
[1743406808662,0.05786006,125.83,125.81,38.9495]
[1743406809265,0.05786006,125.83,125.82,7.9492]
[1743406810964,0.05786006,125.83,125.81,31.0]
[1743406811166,7.9492,125.82,125.79,0.05320631]
[1743406811356,7.9492,125.82,125.79,38.96410631]
[1743406811557,0.05786006,125.83,125.79,31.01320631]
[1743406811773,8.00676006,125.83,125.79,31.01320631]
[1743406811960,8.00676006,125.83,125.8,7.9502]
[1743406813376,8.00676006,125.83,125.79,31.01320631]
[1743406814674,8.00676006,125.83,125.8,7.9504]
[1743406814875,0.05786006,125.83,125.79,31.01320631]
[1743406815077,0.05786006,125.83,125.82,7.9492]
[1743406816276,15.8871,125.92,125.82,7.9492]
[1743406816277,16.34369493,125.9,125.86,7.9463]
[1743406816476,16.34369493,125.9,125.82,30.92]
[1743406817171,7.9459,125.88,125.82,30.92]
[1743406817364,0.05085957,125.87,125.85,0.05445755]
[1743406817564,7.99735957,125.87,125.85,0.05445755]
[1743406817767,0.05085957,125.87,125.85,0.05445755]
[1743406818287,0.05085957,125.87,125.85,31.03445755]
[1743406818782,0.05085957,125.87,125.86,7.9467]
[1743406818982,14.33849493,125.92,125.85,45.37295248]
[1743406819182,1.9549,125.93,125.85,45.37295248]
[1743406819382,1.9549,125.93,125.85,45.31849493]
[1743406819990,7.9437,125.91,125.88,7.945]
[1743406820188,7.9437,125.91,125.89,0.05828516]
[1743406821887,7.9442,125.9,125.89,0.05828516]
[1743406822094,22.28269493,125.9,125.89,0.05828516]
[1743406822989,14.33849493,125.9,125.84,396.8676]
[1743406823189,14.33849493,125.9,125.84,30.92]
[1743406823490,7.9459,125.88,125.84,30.92]
[1743406823991,7.9459,125.88,125.85,8.0029355]
[1743406824195,0.05882498,125.87,125.85,8.0029355]
[1743406824896,7.9467,125.86,125.85,0.0559355]
[1743406825692,8.00522498,125.87,125.85,0.0559355]
[1743406825893,0.05882498,125.87,125.85,0.0559355]
[1743406826292,7.9467,125.86,125.85,0.0559355]
[1743406826488,14.33849493,125.86,125.78,376.39189493]
[1743406826793,14.33849493,125.86,125.79,30.86]
[1743406827790,0.05977248,125.84,125.81,0.05030563]
[1743406828893,7.9487,125.83,125.81,0.05030563]
[1743406829093,0.05977248,125.84,125.81,0.05030563]
[1743406830187,7.9489,125.83,125.81,8.00010563]
[1743406830391,0.05977248,125.84,125.81,0.05030563]
[1743406830896,14.33849493,125.91,125.82,45.11849493]
[1743406831195,14.33849493,125.91,125.82,47.11979493]
[1743406831389,14.33849493,125.91,125.87,7.945]
[1743406831987,0.05962142,125.9,125.88,0.05042771]
[1743406832587,7.944,125.89,125.88,0.05042771]
[1743406833293,7.9459,125.86,125.85,30.84]
[1743406833491,14.33849493,125.91,125.85,30.84]
[1743406834496,7.945,125.88,125.87,0.05580843]
[1743406835598,8.0027105,125.89,125.87,0.05580843]
[1743406836000,0.0581105,125.89,125.87,0.05580843]
[1743406836499,7.9447,125.88,125.87,0.05580843]
[1743406838702,0.0581105,125.89,125.87,0.05580843]
[1743406839404,0.0581105,125.89,125.88,7.9447]
[1743406841602,0.0581105,125.89,125.87,8.00080843]
[1743406841900,0.0581105,125.89,125.87,0.05580843]
[1743406842300,7.9447,125.88,125.87,0.05580843]
[1743406842800,7.9476,125.84,125.82,19.30298157]
[1743406843399,14.33849493,125.88,125.82,19.30298157]
[1743406843906,7.9465,125.86,125.83,7.9475]
[1743406844198,7.99900884,125.86,125.84,0.05626487]
[1743406844404,0.05250884,125.86,125.84,0.05626487]
[1743406844602,7.9466,125.85,125.84,0.05626487]
[1743406845806,7.9482,125.83,125.81,30.6]
[1743406846007,7.9482,125.83,125.8,7.9493]
[1743406846705,7.9475,125.84,125.81,7.9491]
[1743406846902,8.0021212,125.84,125.81,7.9491]
[1743406847103,8.0021212,125.84,125.81,8.00040457]
[1743406847603,0.0546212,125.84,125.81,0.05130457]
[1743406847808,14.33849493,125.82,125.81,0.05130457]
[1743406848002,14.33849493,125.82,125.77,358.0]
[1743406848210,7.9494,125.81,125.78,7.9506]
[1743406848805,7.9498,125.8,125.78,7.9506]
[1743406849006,0.05018226,125.8,125.77,7.9513]
[1743406849206,0.05018226,125.8,125.74,14.33849493]
[1743406849207,14.38867719,125.8,125.74,30.44]
[1743406849402,7.9513,125.78,125.74,30.44]
[1743406849606,14.33849493,125.78,125.73,95.08894524]
[1743406849806,0.05285625,125.77,125.73,87.13514524]
[1743406850008,7.9524,125.76,125.73,95.08884524]
[1743406850409,0.05285625,125.77,125.73,7.9537]
[1743406850908,0.05285625,125.77,125.72,396.3745]
[1743406851212,0.05285625,125.77,125.72,30.42]
[1743406851407,0.05285625,125.77,125.74,7.9532]
[1743406851911,8.00485625,125.77,125.74,7.9532]
[1743406852910,0.05285625,125.77,125.74,7.9532]
[1743406853113,0.05285625,125.77,125.73,7.9538]
[1743406854314,7.9526,125.76,125.73,7.9538]
[1743406854508,0.05285625,125.77,125.73,7.9538]
[1743406855317,14.33849493,125.76,125.7,316.4]
[1743406855614,7.9535,125.74,125.7,30.44]
[1743406855815,0.06117709,125.74,125.7,30.44]
[1743406856121,0.06117709,125.74,125.7,44.77849493]
[1743406856315,0.06117709,125.74,125.73,7.9541]
[1743406856813,14.33849493,125.8,125.76,7.9519]
[1743406857319,14.33849493,125.82,125.73,30.44]
[1743406857519,14.33849493,125.82,125.78,7.9506]
[1743406857714,7.9496,125.81,125.78,7.9506]
[1743406858017,14.33849493,125.8,125.79,0.05531519]
[1743406858413,22.28819493,125.8,125.79,0.05531519]
[1743406860921,7.9497,125.8,125.79,0.05531519]
[1743406862621,8.00511873,125.81,125.79,0.05531519]
[1743406862922,7.9497,125.8,125.79,0.05531519]
[1743406867039,14.33849493,125.8,125.74,30.44]
[1743406867525,14.33849493,125.8,125.72,358.0]
[1743406867726,44.81849493,125.8,125.73,30.48]
[1743406868131,0.0562022,125.78,125.73,30.48]
[1743406869228,0.0562022,125.78,125.77,7.9516]
[1743406869432,0.0562022,125.78,125.73,30.48]
[1743406869630,7.9524,125.76,125.73,38.4338]
[1743406870129,0.0562022,125.78,125.73,38.4338]
[1743406870130,7.952,125.77,125.73,38.4338]
[1743406870335,7.952,125.77,125.74,7.9534]
[1743406870531,7.952,125.77,125.73,30.48]
[1743406870732,0.0562022,125.78,125.73,30.48]
[1743406871134,14.33849493,125.84,125.75,14.33849493]
[1743406871434,25.28375283,125.89,125.75,14.33849493]
[1743406871435,16.40279493,125.86,125.77,14.33849493]
[1743406871636,7.947,125.85,125.78,1.9864]
[1743406871936,7.947,125.85,125.81,7.9488]
[1743406872130,7.947,125.85,125.82,30.68]
[1743406872336,0.05730899,125.84,125.82,30.7375825]
[1743406872932,0.05730899,125.84,125.82,38.6858825]
[1743406873131,0.05730899,125.84,125.82,30.7375825]
[1743406874034,7.9478,125.83,125.82,30.7375825]
[1743406874347,0.05730899,125.84,125.82,30.7375825]
[1743406874538,7.9478,125.83,125.82,0.0575825]
[1743406875538,0.05730899,125.84,125.82,0.0575825]
[1743406875932,0.05730899,125.84,125.83,7.9478]
[1743406876135,18.27859493,125.92,125.83,14.33849493]
[1743406876334,18.27859493,125.92,125.84,32.7374]
[1743406876532,7.9437,125.9,125.87,7.945]
[1743406876938,16.30279493,125.92,125.87,30.7]
[1743406877139,7.9444,125.89,125.87,30.7]
[1743406877333,7.9444,125.89,125.88,0.05720276]
[1743406877639,7.9439,125.9,125.88,0.05720276]
[1743406878428,7.944,125.89,125.88,0.05720276]
[1743406879533,7.9466,125.85,125.84,30.64]
[1743406879734,14.33849493,125.88,125.82,388.64]
[1743406879930,7.9457,125.87,125.82,388.64]
[1743406880241,16.37529493,125.9,125.82,388.64]
[1743406880737,0.05627382,125.87,125.85,0.05146215]
[1743406881141,8.00187382,125.87,125.85,0.05146215]
[1743406882339,7.9459,125.86,125.85,0.05146215]
[1743406883136,0.05627382,125.87,125.85,7.99776215]
[1743406883640,0.05627382,125.87,125.85,0.05146215]
[1743406884242,8.00157382,125.87,125.85,0.05146215]
[1743406884441,0.05627382,125.87,125.85,7.99786215]
[1743406884842,0.05627382,125.87,125.85,30.61146215]
[1743406885838,0.05627382,125.87,125.86,7.9459]
[1743406888039,14.33849493,125.93,125.89,7.944]
[1743406888949,7.9423,125.92,125.89,7.944]
[1743406889149,14.33849493,125.93,125.89,7.944]
[1743406889352,0.05334615,125.92,125.89,8.00049273]
[1743406889848,7.9428,125.91,125.89,8.00049273]
[1743406890444,7.9434,125.9,125.89,0.05649273]
[1743406890942,7.9431,125.91,125.89,8.00049273]
[1743406891147,0.05334615,125.92,125.89,0.05649273]
[1743406891549,7.9429,125.91,125.89,8.00019273]
[1743406892555,0.05334615,125.92,125.89,0.05649273]
[1743406892847,14.33849493,125.99,125.91,14.33849493]
[1743406893041,7.9388,125.98,125.92,30.5]
[1743406893248,14.33849493,126.01,125.92,32.5953]
[1743406893545,14.33849493,126.01,125.93,2.1651]
[1743406893852,0.05858318,125.98,125.96,0.05875814]
[1743406894451,0.05858318,125.98,125.96,7.99795814]
[1743406894653,0.05858318,125.98,125.96,0.05875814]
[1743406895052,0.05858318,125.98,125.97,7.939]
[1743406896151,0.05858318,125.98,125.96,0.05875814]
[1743406896651,7.99728318,125.98,125.96,0.05875814]
[1743406896851,14.33849493,125.97,125.96,0.05875814]
[1743406897154,7.939,125.97,125.96,0.05875814]
[1743406898451,0.05858318,125.98,125.96,0.05875814]
[1743406900059,0.05858318,125.98,125.96,7.99825814]
[1743406900358,0.05858318,125.98,125.96,0.05875814]
[1743406900555,7.99698318,125.98,125.96,0.05875814]
[1743406901763,0.05858318,125.98,125.96,7.99815814]
[1743406902263,7.99698318,125.98,125.96,7.99815814]
[1743406902451,0.05858318,125.98,125.96,7.99815814]
[1743406902761,0.05858318,125.98,125.97,7.939]
[1743406902961,7.936,126.02,125.96,30.45875814]
[1743406903256,7.936,126.02,125.99,7.9377]
[1743406904064,7.99615068,126.02,125.99,7.990132]
[1743406905663,0.06015068,126.02,125.99,30.452432]
[1743406905862,0.06015068,126.02,125.99,44.79092693]
[1743406906260,0.06015068,126.02,126.01,7.9365]
[1743406906465,0.06015068,126.02,126.01,38.3365]
[1743406907262,0.06015068,126.02,125.99,14.39092693]
[1743406907263,7.99595068,126.02,125.99,0.052432]
[1743406907463,0.06015068,126.02,125.99,0.052432]
[1743406907862,7.9365,126.01,125.99,0.052432]
[1743406908971,7.99635068,126.02,125.99,0.052432]
[1743406909471,0.06015068,126.02,125.99,0.052432]
[1743406910469,7.9368,126.01,125.99,0.052432]
[1743406910668,0.06015068,126.02,125.99,0.052432]
[1743406910964,7.99635068,126.02,125.99,0.052432]
[1743406911161,0.06015068,126.02,125.99,0.052432]
[1743406911677,7.9369,126.01,125.99,0.052432]
[1743406911968,0.06015068,126.02,125.99,0.052432]
[1743406912369,0.06015068,126.02,126.0,7.9367]
[1743406912569,0.06015068,126.02,126.01,30.4]
[1743406912972,0.06015068,126.02,126.01,38.3365]
[1743406913370,7.9343,126.05,126.01,30.4]
[1743406913570,7.9343,126.05,126.02,7.9354]
[1743406913768,7.9353,126.03,126.01,30.4]
[1743406914472,7.9353,126.03,126.01,38.38803807]
[1743406914771,0.05943006,126.03,126.01,30.45183807]
[1743406914973,0.05943006,126.03,126.02,7.9358]
[1743406917075,7.933,126.07,126.01,44.790333]
[1743406917274,7.9322,126.08,126.01,44.790333]
[1743406917469,7.9322,126.08,126.01,44.73849493]
[1743406917775,4.1535,126.09,126.01,44.73849493]
[1743406918176,0.0535689,126.06,126.05,7.9339]
[1743406918374,0.0535689,126.06,126.05,38.3339]
[1743406918975,0.0535689,126.06,126.05,30.4]